lending/lending_fUSD_20260306
["ID","MTS","AMOUNT","RATE_DAILY","PERIOD"]
[407837259,1772821852046,-150.0,0.00028561,2]
[407837260,1772821852055,-270.0,0.00028561,2]
[407837261,1772821852066,-200.0,0.00028561,2]
[407837262,1772821852076,-150.0,0.00028561,2]
[407837263,1772821852085,-150.166,0.00028561,2]
[407837264,1772821852094,-150.109,0.00028561,2]
[407837265,1772821852104,-150.0,0.00028561,2]
[407837266,1772821852115,-150.0,0.00028561,2]
[407837267,1772821852125,-150.379,0.00028561,2]
[407837268,1772821852133,-150.0,0.00028561,2]
[407837269,1772821852142,-151.536,0.00028561,2]
[407837270,1772821852151,-1279.0,0.00028561,2]
[407837271,1772821852160,-922.0,0.00028561,2]
[407837272,1772821852170,-1219.676,0.00028561,2]
[407837273,1772821852179,-3502.0,0.00028561,2]
[407837274,1772821852189,-5990.0,0.00028561,2]
[407837275,1772821852199,-2459.0,0.00028561,2]
[407837276,1772821852209,-4000.03,0.000286,7]
[407837277,1772821852218,-5156.15,0.000286,7]
[407837278,1772821852227,-1315.0529832,0.00028646,15]
[407837279,1772821852237,-496.60968372,0.00028767,2]
[407837280,1772821852246,-1035.46686997,0.00028767,5]
[407837281,1772821852255,-2000.0,0.00028767,5]
[407837282,1772821852264,-151.0,0.00028863,2]
[407837283,1772821852273,-20005.18613638,0.000289,4]
[407837284,1772821852282,-118624.51342941,0.00029,2]
[407837285,1772821852291,-4000.03,0.000291,7]
[407837286,1772821852300,-5156.15,0.000291,7]
[407837287,1772821852309,-153.25442738,0.00029107,2]
[407837288,1772821852318,-905.0734978,0.0002919,2]
[407837289,1772821852328,-165.513,0.00029249,2]
[407837290,1772821852338,-218.22,0.00029264,2]
[407837291,1772821852347,-844.0,0.0002931,3]
[407837292,1772821852357,-258.75727543,0.00029411,2]
[407837293,1772821852367,-4000.03,0.000296,7]
[407837294,1772821852376,-5156.15,0.000296,7]
[407837295,1772821852386,-1719.0,0.00029783,2]
[407837296,1772821852395,-79303.86601229,0.000299,2]
[407837297,1772821852404,-825.0,0.00029921,60]
[407837298,1772821852414,-500.0,0.00029955,2]
[407837299,1772821852423,-833.92535153,0.00029955,2]
[407837300,1772821852432,-668.65185757,0.00029955,2]
[407837301,1772821852442,-150.0,0.00029971,2]
[407837302,1772821852451,-57306.98858547,0.0002999,30]
[407837303,1772821852460,-300.0,0.0003,120]
[407837304,1772821852470,-1219.30618,0.0003,120]
[407837305,1772821852480,-352.596,0.0003,20]
[407837306,1772821852489,-9711.2712923,0.0003,30]
[407837307,1772821852499,-160.0,0.0003,120]
[407837308,1772821852508,-67521.74703836,0.0003,5]
[407837309,1772821852517,-10000.0,0.0003,10]
[407837310,1772821852526,-1544.20872838,0.0003,3]
[407837311,1772821852536,-1186.40001992,0.0003,7]
[407837312,1772821852545,-1563.86453971,0.0003,2]
[407837313,1772821852555,-18548.10598567,0.0003,2]
[407837314,1772821852564,-9500.0,0.0003,3]
[407837315,1772821852573,-19974.81059927,0.0003,2]
[407837316,1772821852583,-160.0,0.0003,30]
[407837317,1772821852593,-2000.0,0.0003,14]
[407837318,1772821852603,-290.35736663,0.0003,120]
[407837319,1772821852612,-175.33508358,0.0003,5]
[407837320,1772821852621,-1000.0,0.0003,7]
[407837321,1772821852630,-13927.56386165,0.0003013,2]
[407837322,1772821852640,-7773.83602278,0.0003013,2]
[407837323,1772821852649,-2000.0,0.00030136,22]
[407837324,1772821852662,-1040.45580562,0.00030137,120]
[407837325,1772821852671,-278.23,0.00030137,2]
[407837326,1772821852681,-586.227021,0.00030137,7]
[407837327,1772821852690,-586.227021,0.00030137,7]
[407837328,1772821852701,-586.227021,0.00030137,7]
[407837329,1772821852710,-586.227021,0.00030137,7]
[407837330,1772821852719,-586.227021,0.00030137,7]
[407837331,1772821852729,-586.227021,0.00030137,7]
[407837332,1772821852738,-586.227021,0.00030137,7]
[407837333,1772821852747,-586.227021,0.00030137,7]
[407837334,1772821852756,-586.227021,0.00030137,7]
[407837335,1772821852765,-586.227021,0.00030137,7]
[407837336,1772821852774,-586.227021,0.00030137,7]
[407837337,1772821852783,-586.227021,0.00030137,7]
[407837338,1772821852793,-10013.97149887,0.00030137,2]
[407837339,1772821852802,-9915.0,0.00030137,120]
[407837340,1772821852811,-400.0,0.00030199,24]
[407837341,1772821852820,-15621.16242939,0.000302,2]
[407837342,1772821852830,-4000.03,0.000303,7]
[407837343,1772821852840,-5156.15,0.000303,7]
[407837344,1772821852849,-2000.0,0.000303,2]
[407837345,1772821852857,-197.94,0.00030411,120]
[407837346,1772821852867,-1762.98,0.00030428,60]
[407837347,1772821852875,-325.62,0.00030594,30]
[407837348,1772821852884,-538.166462,0.00030604,120]
[407837349,1772821852894,-200.0,0.00030664,17]
[407837350,1772821852902,-153.25442738,0.00030724,2]
[407837351,1772821852912,-150.0,0.00030749,7]
[407837352,1772821852921,-150.0,0.00030749,7]
[407837353,1772821852930,-150.0,0.00030749,7]
[407837354,1772821852939,-150.0,0.00030749,7]
[407837355,1772821852949,-150.0,0.00030749,7]
[407837356,1772821852958,-150.0,0.00030749,7]
[407837357,1772821852967,-150.0,0.00030749,7]
[407837358,1772821852976,-150.0,0.00030749,7]
[407837359,1772821852984,-150.0,0.00030749,7]
[407837360,1772821852995,-150.0,0.00030749,7]
[407837361,1772821853003,-150.0,0.00030749,7]
[407837362,1772821853013,-150.0,0.00030749,7]
[407837363,1772821853022,-160.519,0.00030749,7]
[407837364,1772821853031,-150.0,0.00030749,7]
[407837365,1772821853041,-4000.03,0.000308,7]
[407837366,1772821853051,-400.0,0.00030829,26]
[407837367,1772821853063,-6301.0,0.00030863,2]
[407837368,1772821853072,-5156.15,0.000309,7]
[407837369,1772821853082,-1459.36,0.0003092,30]
[407837370,1772821853092,-151.0,0.00030997,7]
[407837371,1772821853102,-345.1418086,0.00031,5]
[407837372,1772821853112,-222.18385498,0.00031,120]
[407837373,1772821853121,-160.0,0.00031,120]
[407837374,1772821853132,-51845.85233272,0.00031,2]
[407837375,1772821853141,-186.4015376,0.00031,30]
[407837376,1772821853150,-180.98,0.00031247,30]
[407837377,1772821853159,-340.25924862,0.000314,30]
[407837378,1772821853169,-19890.27082099,0.0003143,4]
[407837379,1772821853178,-400.0,0.00031459,29]
[407837380,1772821853187,-150.0,0.0003147,2]
[407837381,1772821853196,-198.43336773,0.000315,2]
[407837382,1772821853205,-150.0,0.00031561,2]
[407837383,1772821853214,-150.0,0.00031561,2]
[407837384,1772821853224,-150.0,0.00031561,2]
[407837385,1772821853232,-150.0,0.00031561,2]
[407837386,1772821853241,-150.0,0.00031561,2]
[407837387,1772821853251,-150.0,0.00031561,2]
[407837388,1772821853261,-150.0,0.00031561,2]
[407837389,1772821853271,-150.0,0.00031561,2]
[407837390,1772821853280,-150.0,0.00031561,2]
[407837391,1772821853289,-150.0,0.00031561,2]
[407837392,1772821853299,-1279.0,0.00031561,2]
[407837393,1772821853310,-922.0,0.00031561,2]
[407837394,1772821853320,-1212.0,0.00031561,2]
[407837395,1772821853330,-3502.0,0.00031561,2]
[407837396,1772821853339,-5990.0,0.00031561,2]
[407837397,1772821853349,-2459.0,0.00031561,2]
[407837398,1772821853359,-500.0,0.00032,120]
[407837399,1772821853368,-169.48991366,0.00032,120]
[407837400,1772821853377,-279.85863609,0.00032,120]
[407837401,1772821853389,-25014.7329079,0.00032,120]
[407837402,1772821853399,-201.04590651,0.00032,120]
[407837403,1772821853409,-303.96255441,0.00032,120]
[407837404,1772821853419,-228.96409253,0.00032,120]
[407837405,1772821853429,-184.34044219,0.00032,120]
[407837406,1772821853439,-186.82578007,0.00032,120]
[407837407,1772821853450,-174.72065454,0.00032,120]
[407837408,1772821853460,-183.75041206,0.00032,120]
[407837409,1772821853470,-322.05607999,0.00032,120]
[407837410,1772821853479,-207.76900177,0.00032,120]
[407837411,1772821853488,-183.5259931,0.00032,120]
[407837412,1772821853497,-167.79119561,0.00032,120]
[407837413,1772821853507,-1033.93,0.00032,120]
[407837414,1772821853518,-500.0,0.0003208,120]
[407837415,1772821853528,-500.0,0.0003208,120]
[407837416,1772821853537,-482.10450217,0.0003208,120]
[407837417,1772821853547,-500.0,0.0003208,120]
[407837418,1772821853556,-500.0,0.0003208,120]
[407837419,1772821853568,-500.0,0.0003208,120]
[407837420,1772821853578,-500.0,0.0003208,120]
[407837421,1772821853588,-500.0,0.00032089,120]
[407837422,1772821853598,-500.0,0.00032089,120]
[407837423,1772821853607,-320.12475892,0.00032089,120]
[407837424,1772821853617,-10007.35187955,0.000323,30]
[407837425,1772821853627,-153.25442738,0.00032341,2]
[407837426,1772821853637,-825.0,0.00032401,60]
[407837427,1772821853651,-535.0,0.00032443,18]
[407837428,1772821853661,-583.55681017,0.00032459,38]
[407837429,1772821853671,-500.0,0.00032599,120]
[407837430,1772821853683,-500.0,0.00032694,2]
[407837431,1772821853695,-614.265694,0.00032694,2]
[407837432,1772821853705,-693.3919763,0.00032694,2]
[407837433,1772821853717,-2000.0,0.00032876,32]
[407837434,1772821853729,-278.23,0.00032877,2]
[407837435,1772821853741,-309.0,0.00032877,2]
[407837436,1772821853751,-169.48991366,0.00033,120]
[407837437,1772821853762,-201.04590651,0.00033,120]
[407837438,1772821853773,-228.96409253,0.00033,120]
[407837439,1772821853784,-184.34044219,0.00033,120]
[407837440,1772821853795,-186.82578007,0.00033,120]
[407837441,1772821853805,-174.72065454,0.00033,120]
[407837442,1772821853820,-183.75041206,0.00033,120]
[407837443,1772821853830,-322.05607999,0.00033,120]
[407837444,1772821853840,-563.075186,0.00033,14]
[407837445,1772821853850,-167.79119561,0.00033,120]
[407837446,1772821853862,-150.0,0.00033043,2]
[407837447,1772821853871,-243.17368549,0.0003306,7]
[407837448,1772821853881,-400.0,0.00033348,36]
[407837449,1772821853891,-500.0,0.00033546,120]
[407837450,1772821853901,-200.0,0.00033724,31]
[407837451,1772821853910,-500.0,0.00033797,26]
[407837452,1772821853919,-4008.04,0.000338,30]
[407837453,1772821853929,-1459.36,0.00033855,30]
[407837454,1772821853940,-180.39529822,0.00033857,11]
[407837455,1772821853949,-169.48991366,0.000339,120]
[407837456,1772821853959,-201.04590651,0.000339,120]
[407837457,1772821853969,-228.96409253,0.000339,120]
[407837458,1772821853979,-184.34044219,0.000339,120]
[407837459,1772821853988,-186.82578007,0.000339,120]
[407837460,1772821853998,-174.72065454,0.000339,120]
[407837461,1772821854009,-183.75041206,0.000339,120]
[407837462,1772821854018,-322.05607999,0.000339,120]
[407837463,1772821854026,-167.79119561,0.000339,120]
[407837464,1772821854034,-153.25442738,0.00033958,2]
[407837465,1772821854043,-500.0,0.00034,120]
[407837466,1772821854052,-4000.03,0.00034,14]
[407837467,1772821854062,-14099.29598962,0.00034,4]
[407837468,1772821854071,-2000.0,0.00034,2]
[407837469,1772821854079,-3102.78187535,0.00034077,28]
[407837470,1772821854088,-304.0,0.000341,2]
[407837471,1772821854098,-500.0,0.00034462,120]
[407837472,1772821854108,-150.0,0.00034561,2]
[407837473,1772821854118,-150.0,0.00034561,2]
[407837474,1772821854127,-150.0,0.00034561,2]
[407837475,1772821854136,-150.0,0.00034561,2]
[407837476,1772821854146,-150.0,0.00034561,2]
[407837477,1772821854155,-150.0,0.00034561,2]
[407837478,1772821854164,-150.0,0.00034561,2]
[407837479,1772821854173,-150.0,0.00034561,2]
[407837480,1772821854183,-150.0,0.00034561,2]
[407837481,1772821854192,-1279.0,0.00034561,2]
[407837482,1772821854202,-922.0,0.00034561,2]
[407837483,1772821854211,-1212.0,0.00034561,2]
[407837484,1772821854221,-3502.0,0.00034561,2]
[407837485,1772821854231,-5990.0,0.00034561,2]
[407837486,1772821854241,-500.0,0.00034594,120]
[407837487,1772821854251,-1762.98,0.00034641,60]
[407837488,1772821854261,-150.0,0.00034696,2]
[407837489,1772821854271,-1500.0,0.00034795,2]
[407837490,1772821854281,-500.0,0.00034811,28]
[407837491,1772821854291,-388.04272933,0.0003488,120]
[407837492,1772821854300,-825.0,0.00034882,90]
[407837493,1772821854309,-228.67668095,0.000349,30]
[407837494,1772821854319,-150.0,0.000349,30]
[407837495,1772821854328,-3351.66,0.00034976,2]
[407837496,1772821854337,-228.96409253,0.00035,120]
[407837497,1772821854347,-184.34044219,0.00035,120]
[407837498,1772821854356,-174.72065454,0.00035,120]
[407837499,1772821854365,-15255.07780517,0.00035,120]
[407837500,1772821854374,-183.75041206,0.00035,120]
[407837501,1772821854383,-322.05607999,0.00035,120]
[407837502,1772821854392,-5156.15,0.00035,14]
[407837503,1772821854402,-499.99999901,0.00035,2]
[407837504,1772821854411,-5075.0,0.00035,7]
[407837505,1772821854422,-340000.0,0.00035,4]
[407837506,1772821854432,-241.65,0.00035,2]
[407837507,1772821854441,-167.79119561,0.00035,120]
[407837508,1772821854450,-200.0,0.00035,3]
[407837509,1772821854459,-1000.0,0.00035,7]
[407837510,1772821854469,-1033.93,0.000352,120]
[407837511,1772821854478,-500.0,0.00035433,2]
[407837512,1772821854487,-343.98034105,0.00035433,2]
[407837513,1772821854497,-152.0,0.00035539,3]
[407837514,1772821854506,-441.81,0.00035561,30]
[407837515,1772821854515,-347.53764491,0.00035589,120]
[407837516,1772821854525,-463.38352655,0.00035589,120]
[407837517,1772821854535,-10674.48940349,0.0003561,2]
[407837518,1772821854546,-2000.0,0.00035616,120]
[407837519,1772821854556,-683.77515311,0.00035616,120]
[407837520,1772821854567,-500.0,0.00035616,7]
[407837521,1772821854576,-500.0,0.00035616,7]
[407837522,1772821854586,-500.0,0.00035616,7]
[407837523,1772821854595,-500.0,0.00035616,7]
[407837524,1772821854605,-266.65361075,0.00035616,7]
[407837525,1772821854614,-500.0,0.00035616,7]
[407837526,1772821854624,-500.0,0.00035616,7]
[407837527,1772821854633,-500.0,0.00035616,7]
[407837528,1772821854642,-500.0,0.00035616,7]
[407837529,1772821854652,-500.0,0.00035616,7]
[407837530,1772821854665,-500.0,0.00035616,7]
[407837531,1772821854675,-500.0,0.00035616,7]
[407837532,1772821854684,-500.0,0.00035616,7]
[407837533,1772821854695,-500.0,0.00035616,7]
[407837534,1772821854704,-500.0,0.00035616,7]
[407837535,1772821854714,-658.58438471,0.00035616,7]
[407837536,1772821854724,-658.58438471,0.00035616,7]
[407837537,1772821854735,-658.58438471,0.00035616,7]
[407837538,1772821854744,-658.58438471,0.00035616,7]
[407837539,1772821854755,-658.58438471,0.00035616,7]
[407837540,1772821854765,-658.58438471,0.00035616,7]
[407837541,1772821854775,-658.58438471,0.00035616,7]
[407837542,1772821854785,-658.58438471,0.00035616,7]
[407837543,1772821854794,-658.58438471,0.00035616,7]
[407837544,1772821854803,-658.58438471,0.00035616,7]
[407837545,1772821854813,-658.58438471,0.00035616,7]
[407837546,1772821854823,-278.23,0.00035616,2]
[407837547,1772821854833,-1000.0,0.00035616,10]
[407837548,1772821854842,-1000.0,0.00035616,10]
[407837549,1772821854852,-1000.0,0.00035616,10]
[407837550,1772821854862,-1000.0,0.00035616,10]
[407837551,1772821854871,-1000.0,0.00035616,10]
[407837552,1772821854881,-1000.0,0.00035616,10]
[407837553,1772821854891,-1000.0,0.00035616,10]
[407837554,1772821854901,-1000.0,0.00035616,10]
[407837555,1772821854911,-1000.0,0.00035616,10]
[407837556,1772821854922,-1000.0,0.00035616,10]
[407837557,1772821854933,-1000.0,0.00035616,10]
[407837558,1772821854942,-1000.0,0.00035616,10]
[407837559,1772821854955,-1000.0,0.00035616,10]
[407837560,1772821854965,-1000.0,0.00035616,10]
[407837561,1772821854974,-1000.0,0.00035616,10]
[407837562,1772821854984,-1000.0,0.00035616,10]
[407837563,1772821855003,-1000.0,0.00035616,10]
[407837564,1772821855014,-1000.0,0.00035616,10]
[407837565,1772821855024,-1000.0,0.00035616,10]
[407837566,1772821855035,-1000.0,0.00035616,10]
[407837567,1772821855045,-1000.0,0.00035616,10]
[407837568,1772821855056,-186.0,0.00035616,10]
[407837569,1772821855068,-151.0,0.00035616,7]
[407837570,1772821855078,-151.0,0.00035616,7]
[407837571,1772821855088,-300.544298,0.00035616,7]
[407837572,1772821855099,-195.12270387,0.00035616,2]
[407837573,1772821855109,-500.0,0.00035855,31]
[407837574,1772821855119,-724.53543,0.00035888,30]
[407837575,1772821855130,-360.0,0.0003589,30]
[407837576,1772821855140,-500.0,0.00036,120]
[407837577,1772821855150,-228.96409253,0.00036,120]
[407837578,1772821855161,-164145.69311301,0.00036,10]
[407837579,1772821855171,-1276.87510755,0.00036,120]
[407837580,1772821855182,-236001.58979596,0.00036,2]
[407837581,1772821855193,-322.05607999,0.00036,120]
[407837582,1772821855203,-218.95415503,0.00036,7]
[407837583,1772821855213,-151.0,0.00036,7]
[407837584,1772821855223,-151.0,0.00036,7]
[407837585,1772821855233,-285.222572,0.00036,7]
[407837586,1772821855243,-151.0,0.00036,7]
[407837587,1772821855254,-151.0,0.00036,7]
[407837588,1772821855264,-151.0,0.00036,7]
[407837589,1772821855275,-151.0,0.00036,7]
[407837590,1772821855285,-151.0,0.00036,7]
[407837591,1772821855295,-151.0,0.00036,7]
[407837592,1772821855305,-151.0,0.00036,7]
[407837593,1772821855316,-151.0,0.00036,7]
[407837594,1772821855327,-151.0,0.00036,7]
[407837595,1772821855338,-617.0,0.00036,2]
[407837596,1772821855347,-169.0,0.00036,30]
[407837597,1772821855358,-360.0,0.00036,30]
[407837598,1772821855368,-586.227021,0.00036,7]
[407837599,1772821855380,-586.227021,0.00036,7]
[407837600,1772821855391,-586.227021,0.00036,7]
[407837601,1772821855401,-586.227021,0.00036,7]
[407837602,1772821855411,-1831.985538,0.00036,7]
[407837603,1772821855422,-1831.985538,0.00036,7]
[407837604,1772821855434,-1831.985538,0.00036,7]
[407837605,1772821855445,-1831.985538,0.00036,7]
[407837606,1772821855456,-151.0,0.00036,7]
[407837607,1772821855467,-151.0,0.00036,7]
[407837608,1772821855477,-151.0,0.00036,7]
[407837609,1772821855489,-151.0,0.00036,7]
[407837610,1772821855500,-151.0,0.00036,7]
[407837611,1772821855702,-282.176912,0.00036,7]
[407837612,1772821855713,-151.0,0.00036,7]
[407837613,1772821855724,-225.902031,0.00036,7]
[407837614,1772821855735,-225.902031,0.00036,7]
[407837615,1772821855744,-225.902031,0.00036,7]
[407837616,1772821855754,-225.902031,0.00036,7]
[407837617,1772821855764,-151.0,0.00036,7]
[407837618,1772821855775,-1396.228732,0.00036,7]
[407837619,1772821855785,-1396.228732,0.00036,7]
[407837620,1772821855794,-1396.228732,0.00036,7]
[407837621,1772821855804,-1396.228732,0.00036,7]
[407837622,1772821855813,-332.483725,0.00036,7]
[407837623,1772821855823,-332.483725,0.00036,7]
[407837624,1772821855832,-332.483725,0.00036,7]
[407837625,1772821855841,-332.483725,0.00036,7]
[407837626,1772821855855,-151.0,0.00036,7]
[407837627,1772821855864,-641.448977,0.00036,7]
[407837628,1772821855873,-641.448977,0.00036,7]
[407837629,1772821855883,-641.448977,0.00036,7]
[407837630,1772821855893,-641.448977,0.00036,7]
[407837631,1772821855902,-1127.410745,0.00036,7]
[407837632,1772821855912,-1127.410745,0.00036,7]
[407837633,1772821855922,-169.0,0.00036,30]
[407837634,1772821855931,-1127.410745,0.00036,7]
[407837635,1772821855941,-1127.410745,0.00036,7]
[407837636,1772821855950,-706.111149,0.00036,7]
[407837637,1772821855960,-706.111149,0.00036,7]
[407837638,1772821855970,-706.111149,0.00036,7]
[407837639,1772821855979,-706.111149,0.00036,7]
[407837640,1772821855990,-151.0,0.00036,7]
[407837641,1772821855999,-727.1964,0.00036,7]
[407837642,1772821856009,-270.074579,0.00036,7]
[407837643,1772821856018,-151.0,0.00036,7]
[407837644,1772821856028,-270.074579,0.00036,7]
[407837645,1772821856038,-727.1964,0.00036,7]
[407837646,1772821856047,-270.074579,0.00036,7]
[407837647,1772821856059,-727.1964,0.00036,7]
[407837648,1772821856069,-270.074579,0.00036,7]
[407837649,1772821856080,-727.1964,0.00036,7]
[407837650,1772821856090,-151.0,0.00036,7]
[407837651,1772821856099,-151.0,0.00036,7]
[407837652,1772821856109,-197.06,0.0003603,10]
[407837653,1772821856118,-724.53543,0.00036088,30]
[407837654,1772821856127,-830.78,0.00036105,10]
[407837655,1772821856137,-5000.0,0.00036122,10]
[407837656,1772821856146,-360.0,0.00036164,30]
[407837657,1772821856156,-2510.99,0.00036236,10]
[407837658,1772821856166,-16559.02,0.00036243,10]
[407837659,1772821856175,-25000.0,0.00036267,10]
[407837660,1772821856184,-2510.99,0.00036271,10]
[407837661,1772821856194,-724.53543,0.00036288,30]
[407837662,1772821856204,-3585.0,0.00036301,10]
[407837663,1772821856215,-5000.0,0.00036335,10]
[407837664,1772821856224,-150.0,0.0003643,2]
[407837665,1772821856234,-360.0,0.00036438,30]
[407837666,1772821856243,-200.0,0.00036463,41]
[407837667,1772821856253,-2530.1,0.00036463,10]
[407837668,1772821856263,-724.53543,0.00036488,30]
[407837669,1772821856272,-400.0,0.00036498,44]
[407837670,1772821856282,-672.87,0.00036504,10]
[407837671,1772821856291,-500.0,0.00036589,120]
[407837672,1772821856301,-161.0,0.000366,5]
[407837673,1772821856311,-5000.0,0.00036602,10]
[407837674,1772821856322,-724.53543,0.00036688,30]
[407837675,1772821856331,-1568.79,0.00036702,10]
[407837676,1772821856341,-360.0,0.00036712,30]
[407837677,1772821856350,-25000.0,0.00036717,10]
[407837678,1772821856360,-25000.0,0.00036783,10]
[407837679,1772821856370,-1459.36,0.00036791,30]
[407837680,1772821856381,-2530.1,0.00036805,10]
[407837681,1772821856391,-5000.0,0.00036819,10]
[407837682,1772821856401,-521.55480323,0.0003688,120]
[407837683,1772821856410,-2415.1181,0.00036888,7]
[407837684,1772821856420,-724.53543,0.00036888,30]
[407837685,1772821856430,-1196.35,0.00036893,30]
[407837686,1772821856440,-14213.40744122,0.0003691,2]
[407837687,1772821856450,-500.0,0.00036931,37]
[407837688,1772821856460,-152.0,0.00036951,4]
[407837689,1772821856469,-724.53543,0.00037088,30]
[407837690,1772821856479,-1000.0,0.000372,2]
[407837691,1772821856489,-1000.0,0.000372,2]
[407837692,1772821856499,-1000.0,0.000372,2]
[407837693,1772821856509,-1000.0,0.000372,2]
[407837694,1772821856519,-1000.0,0.000372,2]
[407837695,1772821856529,-535.0052428,0.000372,120]
[407837696,1772821856538,-535.00524279,0.000372,120]
[407837697,1772821856548,-535.00524279,0.000372,120]
[407837698,1772821856558,-535.00524279,0.000372,120]
[407837699,1772821856571,-535.00524279,0.000372,120]
[407837700,1772821856581,-441.82639236,0.00037239,30]
[407837701,1772821856591,-1000.0,0.00037283,2]
[407837702,1772821856601,-1000.0,0.00037283,2]
[407837703,1772821856614,-1000.0,0.00037283,2]
[407837704,1772821856624,-1000.0,0.00037283,2]
[407837705,1772821856634,-1000.0,0.00037283,2]
[407837706,1772821856644,-724.53543,0.00037288,30]
[407837707,1772821856656,-29656.0,0.00037309,2]
[407837708,1772821856666,-825.0,0.00037362,90]
[407837709,1772821856676,-170.0,0.00037397,30]
[407837710,1772821856685,-360.0,0.00037397,30]
[407837711,1772821856696,-170.0,0.00037397,30]
[407837712,1772821856706,-724.53543,0.00037488,30]
[407837713,1772821856716,-150.0,0.00037561,2]
[407837714,1772821856725,-150.0,0.00037561,2]
[407837715,1772821856737,-150.0,0.00037561,2]
[407837716,1772821856746,-150.0,0.00037561,2]
[407837717,1772821856756,-150.0,0.00037561,2]
[407837718,1772821856766,-150.0,0.00037561,2]
[407837719,1772821856775,-150.0,0.00037561,2]
[407837720,1772821856784,-1279.0,0.00037561,2]
[407837721,1772821856794,-922.0,0.00037561,2]
[407837722,1772821856804,-1212.0,0.00037561,2]
[407837723,1772821856814,-3502.0,0.00037561,2]
[407837724,1772821856823,-5990.0,0.00037561,2]
[407837725,1772821856833,-724.53543,0.00037688,30]
[407837726,1772821856842,-2000.0,0.000377,2]
[407837727,1772821856851,-150.0,0.000377,30]
[407837728,1772821856861,-998.96282942,0.00037753,120]
[407837729,1772821856871,-3000.0,0.0003788,120]
[407837730,1772821856882,-724.53543,0.00037888,30]
[407837731,1772821856892,-615.05257501,0.000379,120]
[407837732,1772821856904,-855.29437734,0.00037999,120]
[407837733,1772821856914,-500.0,0.00038,120]
[407837734,1772821856925,-214505.58069027,0.00038,14]
[407837735,1772821856934,-500.0,0.00038,2]
[407837736,1772821856945,-526.0,0.00038,5]
[407837737,1772821856955,-500.0,0.00038039,43]
[407837738,1772821856965,-724.53543,0.00038088,30]
[407837739,1772821856975,-9891.12348327,0.000381,33]
[407837740,1772821856986,-500.0,0.00038172,2]
[407837741,1772821856995,-1042.7,0.00038181,7]
[407837742,1772821857005,-847.0,0.00038231,11]
[407837743,1772821857014,-150.0,0.00038252,2]
[407837744,1772821857024,-724.53543,0.00038288,30]
[407837745,1772821857034,-287.95727171,0.000383,30]
[407837746,1772821857043,-500.0,0.00038322,120]
[407837747,1772821857053,-639.784,0.00038354,51]
[407837748,1772821857062,-9390.735,0.00038354,51]
[407837749,1772821857072,-346.79906823,0.00038356,120]
[407837750,1772821857081,-2000.0,0.00038356,120]
[407837751,1772821857091,-1001.307878,0.00038356,120]
[407837752,1772821857100,-1001.307878,0.00038356,120]
[407837753,1772821857110,-1001.307878,0.00038356,120]
[407837754,1772821857119,-1001.307878,0.00038356,120]
[407837755,1772821857129,-1001.307878,0.00038356,120]
[407837756,1772821857138,-1001.307878,0.00038356,120]
[407837757,1772821857148,-1001.307878,0.00038356,120]
[407837758,1772821857157,-1001.307878,0.00038356,120]